Cogmind - Beta 10.1 @@@ ROGUE MODE // 2020.10.09 @ 13:29:27 Player: CrossedViper Result: Destroyed by 8R-AWN with 8R-AWN's Boregun Performance ------------- Evolutions (1) 500 Regions Visited (5) 1000 Robots Destroyed (28) 140 Value Destroyed (628) 628 Prototype IDs (24) 480 Alien Tech Used (0) 0 Bonus (32) 32 TOTAL SCORE: 2780 Bonus ------- Follower Combat Kills 143 Aligned with FarCom 300 Friendly Fire -411 Cogmind --------- Core Integrity 0/400 Matter 146/300 Energy 10/100 System Corruption 0% Temperature Cool (4) Movement Core (300) Ox5 Location -9/Exiles Parts ------- > --- POWER (1) -------- (None) > --- PROPULSION (2) --- (None) > --- UTILITY (2) ------ (None) > --- WEAPON (4) ------- Improved EM Shotgun Improved EM Shotgun Latent Energy Streamer > --- INVENTORY (4) ---- High-capacity Storage Unit EMP Blaster Peak State ------------ > --- POWER ------------ (None) > --- PROPULSION ------- (None) > --- UTILITY ---------- High-capacity Storage Unit High-capacity Matter Pod > --- WEAPON ----------- Improved EM Shotgun Improved EM Shotgun YOLO Cannon > --- INVENTORY -------- Improved EM Shotgun Latent Energy Streamer EMP Blaster [Rating: 29] Favorites ----------- Power Ion Engine Engine Ion Engine Power Core Light Nuclear Core Propulsion Aluminum Leg Treads Light Treads Leg Aluminum Leg Utility High-capacity Storage Unit Storage High-capacity Storage Unit Processor Targeting Computer Weapon Heavy Assault Rifle Energy Gun Improved EM Shotgun Energy Cannon YOLO Cannon Ballistic Gun Heavy Assault Rifle Ballistic Cannon Bore Cannon Launcher EMP Blaster Build | -11 -10 -10 -9 -9 -9 ------- Run | Scr Mat Min Mat Min Exi Slots Evolved 2 | . . . 2 . . Power . | . . . . . . Propulsion . | . . . . . . Utility . | . . . . . . Weapon 2 | . . . 2 . . Parts Attached 38 | . 2 7 8 6 15 Power 1 | . . . 1 . . Engine . | . . . . . . Core 1 | . . . 1 . . Reactor . | . . . . . . Propulsion 10 | . . 2 2 4 2 Treads 2 | . . 2 . . . Leg 8 | . . . 2 4 2 Wheel . | . . . . . . Hover . | . . . . . . Flight . | . . . . . . Utility 3 | . . 2 . . 1 Device . | . . . . . . Storage 2 | . . 1 . . 1 Processor 1 | . . 1 . . . Hackware . | . . . . . . Protection . | . . . . . . Artifact . | . . . . . . Weapon 24 | . 2 3 5 2 12 Energy Gun 6 | . . . 2 . 4 Energy Cannon 2 | . . . . . 2 Ballistic Gun 8 | . 1 2 3 1 1 Ballistic Cannon 3 | . . 1 . . 2 Launcher 5 | . 1 . . 1 3 Special Weapon . | . . . . . . Impact Weapon . | . . . . . . Slashing Weapon . | . . . . . . Piercing Weapon . | . . . . . . Special Melee Weapon . | . . . . . . Unidentified Prototypes 1 | . . . 1 . . Parts Lost 13 | . . . 1 . 12 Power 1 | . . . . . 1 Propulsion 4 | . . . . . 4 Utility . | . . . . . . Weapon 8 | . . . 1 . 7 Highest Loss Streak 10 | . . . 1 . 10 Average Slot Usage (%) 95 | . 85 97 98 100 85 Engine 7 | . 14 14 9 . . Core 3 | . . . 1 11 7 Treads 10 | . . 24 9 . . Leg 13 | . 28 3 12 22 18 Storage 12 | . 14 14 11 11 10 Processor 9 | . . 11 11 11 8 Energy Gun 4 | . . . 4 11 8 Ballistic Gun 29 | . 28 28 38 33 20 Naked Turns . | . . . . . . Heaviest Build 56 | 12 12 44 49 49 56 Greatest Support 40 | 20 20 40 40 20 20 Greatest Overweight (x) 4 | . . 1 4 2 2 Average Overweight (x) 1 | . . . 1 2 2 Largest Inventory Capacity 14 | 6 6 14 12 12 12 Average Capacity 10 | 6 6 11 12 12 11 Most Carried 12 | 6 6 9 12 12 12 Average Carried 8 | 6 5 7 7 11 9 Final Capacity 12 | 6 6 12 12 12 4 Final Carried 12 | 6 6 9 12 12 2 Class Distribution -------------------- 49% | Mutant 44% | Scavenger-Gunner 3% | Scavenger-Mutant Dominant Class ---------------- Mutant | -10/Materials Mutant | -10/Mines Scavenger-Gunner | -9/Materials Scavenger-Gunner | -9/Mines Scavenger-Gunner | -9/Exiles Resources | -11 -10 -10 -9 -9 -9 ----------- Run | Scr Mat Min Mat Min Exi Matter Collected 1003 | 200 28 266 369 140 . Remotely . | . . . . . . Salvage Created 962 | . 77 223 308 271 83 Parts 64 | . 6 19 18 21 . Haulers Intercepted 2 | . . . 2 . . Recyclers Shooed . | . . . . . . Parts Field Recycled . | . . . . . . Retrieved Matter . | . . . . . . Parts Self-Destructed . | . . . . . . Prevented . | . . . . . . Kills | -11 -10 -10 -9 -9 -9 ------- Run | Scr Mat Min Mat Min Exi Combat Hostiles Destroyed 21 | . 2 4 4 7 4 Guns 14 | . 2 4 4 4 . AOE 7 | . . . . 3 4 Classes Destroyed 9 | . 1 3 1 3 1 Worker 1 | . . 1 . . . Builder 1 | . . 1 . . . Tunneler 1 | . . . . 1 . Hauler 2 | . . . 2 . . Swarmer 3 | . . . . 3 . Grunt 10 | . 2 2 3 3 . Duelist 1 | . . . . 1 . Sentry 3 | . . 2 1 . . Assembled 6 | . . . . . 6 Best Kill Streak 4 | . 1 2 2 4 2 Combat Bots Only 3 | . 1 2 2 3 2 Max Kills in Single Turn 2 | . 1 1 1 2 2 Gunslinging . | . . . . . . Exploded 2 | . . . . 2 2 Melee . | . . . . . . Uniques/NPCs Destroyed . | . . . . . . Combat | -11 -10 -10 -9 -9 -9 -------- Run | Scr Mat Min Mat Min Exi Damage Taken 2434 | . 56 187 366 90 1735 Core 432 | . 12 14 15 11 380 Absorbed by Shields . | . . . . . . Core Remaining (%) 94 | 100 . 89 . . . Volleys Fired 90 | . 8 15 21 10 36 Largest 4 | . 2 2 4 4 3 Hottest 114 | . 40 43 114 114 113 Shots Fired 217 | . 15 30 80 33 59 Gun 183 | . 14 30 80 31 28 Cannon 23 | . . . . . 23 Launcher 11 | . 1 . . 2 8 Special . | . . . . . . Kinetic 186 | . 14 30 74 24 44 Thermal 5 | . . . . . 5 Explosive 5 | . 1 . . . 4 Electromagnetic 21 | . . . 6 9 6 Robot Hit Streak 12 | . 2 4 12 6 12 Robot Miss Streak 6 | . 2 2 3 6 6 Penetration Max . | . . . . . . Secondary Targets 3 | . . 1 . 2 . Max Gunslinging Chain 1 | . . 1 . 1 . Shots Hit Robots 134 | . 7 18 52 18 39 Core Hits 64 | . 3 10 14 14 23 Critical Hits 12 | . 1 . 1 . 10 Critical Kills 1 | . 1 . . . . Critical Parts Destroyed 1 | . . . . . 1 Melee Attacks . | . . . . . . Impact . | . . . . . . Slashing . | . . . . . . Piercing . | . . . . . . Sneak Attacks . | . . . . . . Combat Hostiles . | . . . . . . Follow-up Attacks . | . . . . . . Damage Inflicted 2883 | . 68 205 662 336 1612 Guns 1530 | . 68 205 662 290 305 Cannons 663 | . . . . . 663 Explosions 690 | . . . . 46 644 Melee . | . . . . . . Ramming . | . . . . . . Kinetic 1582 | . 68 205 573 190 546 Thermal 702 | . . . . . 702 Explosive 82 | . . . . . 82 Electromagnetic 517 | . . . 89 146 282 Impact . | . . . . . . Slashing . | . . . . . . Piercing . | . . . . . . Highest Corruption . | . . . . . . Average Corruption . | . . . . . . Corruption Purged . | . . . . . . Overload Shots . | . . . . . . Overflow Damage 2 | . . . . . 2 Projectiles . | . . . . . . Explosions 2 | . . . . . 2 Melee . | . . . . . . Knockbacks 4 | . . . . . 4 Impact . | . . . . . . Kinetic 4 | . . . . . 4 Secondary . | . . . . . . Self-Inflicted Damage 271 | . 50 . . . 221 Shots 7 | . 3 . . . 4 Rammed . | . . . . . . Targets Rammed . | . . . . . . Kicked . | . . . . . . Crushed . | . . . . . . Highest Temperature 213 | . 6 15 139 213 27 Average Temperature 38 | . 6 7 41 73 11 Received Heat Transfer 317 | . 6 87 174 30 20 Siege Activations . | . . . . . . Robots Corrupted . | . . . . . . Combat Hostiles . | . . . . . . Parts Fried . | . . . . . . Impact Corruptions . | . . . . . . Robots Melted . | . . . . . . Combat Hostiles . | . . . . . . Parts Melted . | . . . . . . Heat Transferred 160 | . . . . . 160 Parts Sabotaged . | . . . . . . Parts Stolen . | . . . . . . Parts Stripped . | . . . . . . Power Chain Reactions 1 | . . . . 1 . Missiles Intercepted . | . . . . . . Alert | -11 -10 -10 -9 -9 -9 ------- Run | Scr Mat Min Mat Min Exi Peak Influence 194 | . 99 143 189 194 . Initial 51 | . . 38 . 51 . Average 69 | . 55 45 99 88 . Maximum Alert Level . | . . . . . . Low Security (%) 100 | 100 100 100 100 100 . Level 1 . | . . . . . . Level 2 . | . . . . . . Level 3 . | . . . . . . Level 4 . | . . . . . . Level 5 . | . . . . . . High Security . | . . . . . . Max Security . | . . . . . . Squads Dispatched 4 | . 2 . 2 . . Investigation 1 | . 1 . . . . Extermination . | . . . . . . Reinforcement 3 | . 1 . 2 . . Assault . | . . . . . . Garrison . | . . . . . . Intercept . | . . . . . . Construction Impeded . | . . . . . . Haulers Reinforced . | . . . . . . Stealth | -11 -10 -10 -9 -9 -9 --------- Run | Scr Mat Min Mat Min Exi Distress Signals . | . . . . . . Communications Jammed . | . . . . . . Distress Signals . | . . . . . . Times Spotted 31 | . 4 4 9 8 6 Peak Tracking Total 7 | . 2 2 3 3 7 Tactical Retreats . | . . . . . . Traps | -11 -10 -10 -9 -9 -9 ------- Run | Scr Mat Min Mat Min Exi Traps Triggered 1 | . 1 . . . . Indirectly . | . . . . . . Trap Hack Attempts . | . . . . . . Triggered . | . . . . . . Disarmed . | . . . . . . Reprogrammed . | . . . . . . Reused . | . . . . . . Traps Extracted . | . . . . . . Installed . | . . . . . . Triggered . | . . . . . . Machines | -11 -10 -10 -9 -9 -9 ---------- Run | Scr Mat Min Mat Min Exi Machines Disabled 8 | . 2 1 1 . 4 Max in Single Turn 2 | . 2 1 1 . 2 Machines Sabotaged . | . . . . . . Garrisons Compromised . | . . . . . . Overloaded Fab Kills . | . . . . . . Fab Network Shutdowns . | . . . . . . Hacking | -11 -10 -10 -9 -9 -9 --------- Run | Scr Mat Min Mat Min Exi Machines Accessed 7 | . 2 . 4 . 1 Terminals 4 | . 2 . 2 . . Fabricators . | . . . . . . Repair Stations 1 | . . . 1 . . Recycling Units . | . . . . . . Scanalyzers 1 | . . . 1 . . Garrison Access . | . . . . . . Total Hacks 12 | . 3 . 8 . 1 Successful 8 | . 2 . 5 . 1 Failed 4 | . 1 . 3 . . Catastrophic 1 | . 1 . . . . Database Lockouts . | . . . . . . Manual 7 | . 3 . 3 . 1 Terminals 7 | . 3 . 4 . . Fabricators . | . . . . . . Repair Stations 2 | . . . 2 . . Recycling Units . | . . . . . . Scanalyzers 2 | . . . 2 . . Garrison Access . | . . . . . . Terminal Hacks 2 | . . . 1 . 1 Branch Access Points 1 | . . . 1 . . EX-Prototype ID Bank 1 | . . . . . 1 Fabricator Hacks . | . . . . . . Repair Station Hacks 2 | . . . 2 . . Scan Component 1 | . . . 1 . . Repair 1 | . . . 1 . . Recycling Unit Hacks . | . . . . . . Scanalyzer 1 | . . . 1 . . Insert Component 1 | . . . 1 . . Garrison Access Hacks . | . . . . . . Unauthorized Hacks 3 | . 2 . 1 . . Terminals 3 | . 2 . 1 . . Botnet 3 | . 2 . 1 . . Fabricators . | . . . . . . Repair Stations . | . . . . . . Recycling Units . | . . . . . . Scanalyzers . | . . . . . . Garrison Access . | . . . . . . Data Cores Recovered . | . . . . . . Used . | . . . . . . Hacking Detections 3 | . 1 . 2 . . Full Trace Events . | . . . . . . Feedback Events . | . . . . . . Feedback Blocked . | . . . . . . Robot Schematics Acquired . | . . . . . . Robots Built . | . . . . . . Matter . | . . . . . . Time . | . . . . . . Total Robot Build Rating . | . . . . . . Part Schematics Acquired . | . . . . . . Parts Built . | . . . . . . Matter . | . . . . . . Time . | . . . . . . Total Part Build Rating . | . . . . . . Parts Repaired 1 | . . . 1 . . Time 36 | . . . 36 . . Parts Recycled . | . . . . . . Recycled Matter . | . . . . . . Retrieved Matter . | . . . . . . Retrieved Components . | . . . . . . Parts Scanalyzed 1 | . . . 1 . . Part Schematics Acquired . | . . . . . . Parts Damaged . | . . . . . . Bothacking | -11 -10 -10 -9 -9 -9 ------------ Run | Scr Mat Min Mat Min Exi Used RIF Installer . | . . . . . . Robots Hacked . | . . . . . . Non-combat . | . . . . . . Combat . | . . . . . . Robot Hacks Applied . | . . . . . . Relay Couplers Released . | . . . . . . Robots Rewired . | . . . . . . Allies Hacked . | . . . . . . Hacks Repelled . | . . . . . . Allies | -11 -10 -10 -9 -9 -9 -------- Run | Scr Mat Min Mat Min Exi Total Allies 5 | . . 3 . 2 . Largest Group 3 | . . 3 3 3 2 Highest-Rated Group 44 | . . 40 40 44 44 Highest-Rated Ally 31 | . . 16 16 31 31 Total Orders . | . . . . . . Ally Attacks 40 | . . . 29 11 . Total Damage 448 | . . . 289 159 . Kills 6 | . . . 5 1 . Allies Corrupted . | . . . . . . Allies Melted . | . . . . . . Intel | -11 -10 -10 -9 -9 -9 ------- Run | Scr Mat Min Mat Min Exi Robot Analysis Total . | . . . . . . Derelict Logs Recovered 2 | . . 1 . 1 . Drone Launches . | . . . . . . Drone Recoveries . | . . . . . . Exploration | -11 -10 -10 -9 -9 -9 ------------- Run | Scr Mat Min Mat Min Exi Turns Passed 2998 | 3 278 1008 573 631 505 Spaces Moved 1528 | 3 205 554 262 327 177 Core . | . . . . . . Treads 584 | . . 469 115 . . Legs 944 | 3 205 85 147 327 177 Wheels . | . . . . . . Hover . | . . . . . . Flight . | . . . . . . Fastest Speed 120 | 120 120 120 180 180 180 Average Speed 168 | 120 120 170 180 180 180 Slowest Speed 240 | 120 120 180 240 180 180 Overloaded Moves . | . . . . . . Propulsion Burnouts . | . . . . . . Robots Hopped . | . . . . . . Cave-ins Triggered . | . . . . . . Exploration Rate (%) 45 | 2 38 93 27 73 39 Regions Visited 5 Branch Regions 3 Pre-discovered Areas 1 | . . 1 . . . Known Exits Taken 1 | . . . 1 . . Unknown Exits Taken 4 | 1 1 1 . 1 . Scrap Searched 3 | . . 2 . 1 . Spaces Dug 7 | . 7 . . . . Terrain Destroyed 81 | . 7 . . 2 72 Melee . | . . . . . . Projectile 12 | . . . . . 12 AOE 69 | . 7 . . 2 60 Terrain Rammed . | . . . . . . Walls Destroyed . | . . . . . . Machines Disabled . | . . . . . . Actions | -11 -10 -10 -9 -9 -9 --------- Run | Scr Mat Min Mat Min Exi Total 1784 | 2 224 591 317 350 300 Wait 77 | . 2 2 10 . 63 Move 1523 | 2 204 553 261 326 177 Hop . | . . . . . . Pick Up 28 | . 4 8 12 2 2 Fast Attach 2 | . . 2 . . . Attach 21 | . . 3 8 . 10 Detach 2 | . . . . . 2 Swap 15 | . 2 2 . 6 5 Drop 26 | . 4 6 5 6 5 Fire 90 | . 8 15 21 10 36 Melee . | . . . . . . Ram . | . . . . . . Kick . | . . . . . . Crush . | . . . . . . Escape Stasis . | . . . . . . Rewire . | . . . . . . Trap . | . . . . . . Miscellaneous . | . . . . . . Route ------- -11/Scrapyard -10/Materials (discovered 2 exits: *Mat / [*Min]) -10/Mines (discovered 2 exits: *Mat x2) -9/Materials (discovered 2 exits: [*Mat] / *Min) -9/Mines -9/Exiles History --------- Turn | Location | Event 1 | -11/Scrapyard | Discovered new exit (range 3) 4 | -11/Scrapyard | Entered Materials 184 | -10/Materials | Discovered new exit (range 3) 261 | -10/Materials | Discovered new exit (range 16) 282 | -10/Materials | Entered Mines 287 | -10/Mines | Learned location of Recycling (-8) 302 | -10/Mines | Discovered new exit (range 10) 315 | -10/Mines | Build established: Mutant 738 | -10/Mines | Assisted by bots powering up and referring to "LRC-V3" 970 | -10/Mines | A weapon hastily lodged in a ceiling crevice suddenly fell to the ground 1268 | -10/Mines | Discovered new exit (range 10) 1290 | -10/Mines | Entered Materials 1290 | -9/Materials | Accompanied by 3 allies 1290 | -9/Materials | Evolved 2 slots: Weapon x2 1486 | -9/Materials | Identified exit to Mines 1577 | -9/Materials | Discovered new exit (range 3) 1609 | -9/Materials | Repaired Broken Grenade Launcher 1668 | -9/Materials | Build established: Scavenger-Gunner 1863 | -9/Materials | Entered Mines 1863 | -9/Mines | Accompanied by 3 allies 2462 | -9/Mines | Learned Materials garrison access intel 2485 | -9/Mines | Deemed a non-threat by the Exiles lab entrance 2485 | -9/Mines | Discovered new exit (range 5) 2494 | -9/Mines | Entered Exiles 2494 | -9/Exiles | Accompanied by 2 allies 2524 | -9/Exiles | Led the pair of lost Derelicts to a safe place 2538 | -9/Exiles | Met 8R-AWN 2570 | -9/Exiles | Met EX-HEX 2620 | -9/Exiles | Met EX-BIN 2642 | -9/Exiles | Aligned with FarCom system 2644 | -9/Exiles | Given EX-Vault access code 2685 | -9/Exiles | Opened EX-Vault 2704 | -9/Exiles | Found Latent Energy Streamer 2711 | -9/Exiles | Found YOLO Cannon 2753 | -9/Exiles | Warned to stay clear of 0b10 Research branches 2822 | -9/Exiles | Attacked by the Exiles 2910 | -9/Exiles | Core integrity fell below 50% 2940 | -9/Exiles | Lost 10 parts (1p4n5w) 2970 | -9/Exiles | Core integrity fell below 20% 2999 | -9/Exiles | Destroyed by 8R-AWN with 8R-AWN's Boregun Last Messages --------------- 02926_ HV Slug penetrates Assembled Analyzer. 02930_ HV Slug penetrates Earth. 02938_ HV Slug penetrates Wall. 02938_ HV Slug penetrates Assembled Analyzer. 02938_ Penetrated by HV Slug. 02940_ Dropped Hcp. Matter Pod. 02943_ Penetrated by HV Slug. 02967_ 8R-AWN suffers critical hit. 02969_ HV Slug penetrates Wall. 02969_ Penetrated by HV Slug. 02969_ HV Slug penetrates Assembled Analyzer. 02973_ Penetrated by HV Slug. 02973_ Critical hit. 02973_ Imp. EM Shotgun destroyed. 02973_ Penetrated by HV Slug. 02981_ Destroyed Prototype Protection. 02982_ Penetrated by HV Slug. 02994_ Critical hit. 02994_ YOLO Cannon destroyed. 02994_ Penetrated by HV Slug. Map ----- +----------------------------------------------------+ | """#??????????????????????????????????? | | """#??????????????????????????????????? | | """#??????????????????????????????????? | | """#??????????????????????????????????? | | """#??????????????????????????????????? | | """"??????????????????????????????????? | | """#??????????????????????????????????? | | "X" """"??????????????????????????????????? | | """ #??????????????????????????????????? | | """""""""#??????????????????????????????????? | | ###########??????????????????????????????????? | | #????????????????????????????????????????????? | | #????????????????????????????????????????????? | | ##???????????????????????????????????????????? | | ##???####;######????????????????????????????? | | #####""" """"##???????????????????????????? | | " """"##??????????????????????????? | | " #??????????????????????????? | | "" #??????????????????????????? | | a #???????????#####??????????? | | ;#?????????##" #??????????? | | ;##???????#" #??????????? | | "" ###????##" ##?????????? | | #""" ###### ###???????? | | #####""" # ######### | | ????##""" @ #""""## | | ?????#"""" | | ?????#"" g ## * | | ??????""" % #### | | ?????? #?#"""""#### | | ?????? ;#?#######??#### | | ????? ;#?????????????## | | ????? #??????????????? | | ????? % ; #??????????????? | | ??????? #??????????????? | | ????????? " " # ##??????????????? | | ??????????" "? ## ##???????????????? | | ???????????????? # ## #?####????????????????? | | ??????????????????# ####??#??????????????????????? | | ?????????????????????????????????????????????????? | | ?????????????????????????????????????????????????? | | ?????????????????????????????????????????????????? | | ?????????????????????????????????????????????????? | | ?????????????????????????????????????????????????? | | ?????????????????????????????????????????????????? | | ?????????????????????????????????????????????????? | | ?????????????????????????????????????????????????? | | ?????????????????????????????????????????????????? | | ?????????????????????????????????????????????????? | | ?????????????????????????????????????????????????? | +----------------------------------------------------+ Best States ------------- Heat Dissipation 28 Energy Generation 14 Energy Capacity 250 Matter Stores 300 Matter Capacity 500 Sight Range 16 Terrain Scan Density 10 Evasion (%) 40 Targeting Accuracy 5 Recoil Reduction 2 Item Schematics ----------------- None Robot Schematics ------------------ None Fabricated ------------ Nothing Alien Tech Used ----------------- None Achievements -------------- None Challenges ------------ None Game ------ Seed AssembledSmallStripper Manual? 0 Play Time 00:20:53 Cumulative 79.6 hours Start 2020.10.02 @ 21:48:56 End 2020.10.09 @ 13:29:27 Sessions 5 Manual Loads 0 Difficulty Rogue Special Mode None Game No. 76 Rogue 75 Adventurer 0 Explorer 1 Win Type - Total 0 Types 0/0/0/0/0/0/0/0/0 Lore% 49 Gallery% 77 Achievement% 58 Wizard Run 0 Options --------- ASCII 0 Keyboard 0 Movement Mouse Keybinds 0 Fullscreen 1 Font 18/SmallcapsGlow Map View 76x50 Tactical HUD 1 Map Filters NONE Filters NONE Steam 1 RUN: 1f17a33c-d0ed-48e9-bf12-3af3f7637da3